[Event "*** SCC Grand Prix: Titled Tuesday Blitz"]
[Site "Chess.com"]
[Date "2020.08.11"]
[Round "6"]
[White "TioCridineno"]
[Black "guillembaches"]
[Result "0-1"]
[WhiteElo "2209"]
[BlackElo "2402"]
[TimeControl "180+1"]
[EndTime "11:07:38 PDT"]
[Termination "guillembaches won on time"]

1. e4 {[%clk 0:02:49.9]} 1... c5 {[%clk 0:02:59.7]} 2. Nf3 {[%clk 0:02:49.8]}
2... d6 {[%clk 0:03:00.2]} 3. Bb5+ {[%clk 0:02:48.4]} 3... Bd7 {[%clk
0:03:00.2]} 4. Bxd7+ {[%clk 0:02:47]} 4... Qxd7 {[%clk 0:03:01.1]} 5. c4 {[%clk
0:02:47.6]} 5... e5 {[%clk 0:03:01.2]} 6. Nc3 {[%clk 0:02:47.3]} 6... Nc6 {[%clk
0:03:01.4]} 7. d3 {[%clk 0:02:47.5]} 7... Be7 {[%clk 0:03:01.5]} 8. Rb1 {[%clk
0:02:44]} 8... Bd8 {[%clk 0:03:00.5]} 9. a3 {[%clk 0:02:44.3]} 9... a5 {[%clk
0:03:00.6]} 10. Nd5 {[%clk 0:02:43.2]} 10... Nge7 {[%clk 0:02:59.3]} 11. Be3
{[%clk 0:02:38.2]} 11... O-O {[%clk 0:02:55.7]} 12. h4 {[%clk 0:02:28.3]} 12...
f5 {[%clk 0:02:49.7]} 13. Bg5 {[%clk 0:02:27.5]} 13... Nxd5 {[%clk 0:02:44.5]}
14. cxd5 {[%clk 0:02:27.1]} 14... Nd4 {[%clk 0:02:41.8]} 15. Nxd4 {[%clk
0:02:26.4]} 15... exd4 {[%clk 0:02:35.7]} 16. Qh5 {[%clk 0:02:05.9]} 16... fxe4
{[%clk 0:02:09.1]} 17. dxe4 {[%clk 0:02:04.1]} 17... Qb5 {[%clk 0:02:02.4]} 18.
f3 {[%clk 0:01:57.8]} 18... Qd3 {[%clk 0:01:38.4]} 19. Rd1 {[%clk 0:00:51.4]}
19... Qc2 {[%clk 0:01:37.8]} 20. Rd2 {[%clk 0:00:42.3]} 20... Qb1+ {[%clk
0:01:31.3]} 21. Rd1 {[%clk 0:00:42.2]} 21... Qxb2 {[%clk 0:01:31.4]} 22. O-O
{[%clk 0:00:42.1]} 22... Bxg5 {[%clk 0:01:22.7]} 23. hxg5 {[%clk 0:00:40.2]}
23... Rae8 {[%clk 0:01:12.9]} 24. Rb1 {[%clk 0:00:33.3]} 24... Qxa3 {[%clk
0:01:09.4]} 25. Rxb7 {[%clk 0:00:33.2]} 25... Qe3+ {[%clk 0:01:04.7]} 26. Kh1
{[%clk 0:00:29.4]} 26... d3 {[%clk 0:01:00.6]} 27. Rd1 {[%clk 0:00:08.9]} 27...
Qe2 {[%clk 0:00:53.8]} 28. Rbb1 {[%clk 0:00:05.6]} 28... c4 {[%clk 0:00:46.8]}
29. g6 {[%clk 0:00:05.1]} 29... h6 {[%clk 0:00:27.6]} 30. Qg4 {[%clk 0:00:05.3]}
30... Re7 {[%clk 0:00:18.8]} 31. Re1 {[%clk 0:00:05.2]} 31... Qc2 {[%clk
0:00:17.1]} 32. Rbc1 {[%clk 0:00:02.8]} 32... Qb3 {[%clk 0:00:17.1]} 33. Rb1
{[%clk 0:00:02.6]} 33... Qc2 {[%clk 0:00:15.9]} 34. Rec1 {[%clk 0:00:02.4]}
34... Qa2 {[%clk 0:00:14.5]} 35. Ra1 {[%clk 0:00:02.7]} 35... Qb3 {[%clk
0:00:14.4]} 36. Rab1 {[%clk 0:00:03.1]} 36... Qa4 {[%clk 0:00:13.4]} 37. Ra1
{[%clk 0:00:03.6]} 37... Qb5 {[%clk 0:00:12.9]} 38. Rab1 {[%clk 0:00:04.1]}
38... Qa6 {[%clk 0:00:13.1]} 39. Ra1 {[%clk 0:00:03.5]} 39... d2 {[%clk
0:00:13.2]} 40. Rd1 {[%clk 0:00:03.8]} 40... c3 {[%clk 0:00:13.4]} 41. Ra2
{[%clk 0:00:04.3]} 41... Qe2 {[%clk 0:00:12.9]} 0-1

[Event "*** SCC Grand Prix: Titled Tuesday Blitz"]
[Site "Chess.com"]
[Date "2020.08.11"]
[Round "6"]
[White "ketster"]
[Black "GAusal"]
[Result "1-0"]
[WhiteElo "2377"]
[BlackElo "2149"]
[TimeControl "180+1"]
[EndTime "11:07:42 PDT"]
[Termination "ketster won by resignation"]

1. d4 {[%clk 0:03:00.9]} 1... d5 {[%clk 0:02:58.3]} 2. c4 {[%clk 0:02:59.2]}
2... c6 {[%clk 0:02:58.2]} 3. Nf3 {[%clk 0:02:57.3]} 3... g6 {[%clk 0:02:58.1]}
4. g3 {[%clk 0:02:57]} 4... Bg7 {[%clk 0:02:58]} 5. Bg2 {[%clk 0:02:56]} 5...
Nf6 {[%clk 0:02:58.1]} 6. b3 {[%clk 0:02:55.9]} 6... O-O {[%clk 0:02:57.8]} 7.
Bb2 {[%clk 0:02:55.4]} 7... Bg4 {[%clk 0:02:56.7]} 8. Ne5 {[%clk 0:02:48.8]}
8... Bf5 {[%clk 0:02:55.3]} 9. O-O {[%clk 0:02:48.2]} 9... Nbd7 {[%clk
0:02:49.3]} 10. Nd2 {[%clk 0:02:46.4]} 10... Be6 {[%clk 0:02:45.4]} 11. Qc2
{[%clk 0:02:39.8]} 11... dxc4 {[%clk 0:02:43.6]} 12. bxc4 {[%clk 0:02:36]} 12...
Nxe5 {[%clk 0:02:40.4]} 13. dxe5 {[%clk 0:02:30.9]} 13... Nd7 {[%clk 0:02:39.6]}
14. Nf3 {[%clk 0:02:29.3]} 14... Nb6 {[%clk 0:02:35.3]} 15. Rfd1 {[%clk
0:02:27.6]} 15... Qc7 {[%clk 0:02:34.6]} 16. c5 {[%clk 0:02:25.6]} 16... Nd5
{[%clk 0:02:34.2]} 17. e4 {[%clk 0:02:22.7]} 17... Nb4 {[%clk 0:02:29.9]} 18.
Qa4 {[%clk 0:02:20.8]} 18... a5 {[%clk 0:02:26.1]} 19. a3 {[%clk 0:02:13.4]}
19... Na6 {[%clk 0:02:21.2]} 20. Qc2 {[%clk 0:02:09.5]} 20... Rfd8 {[%clk
0:02:19.4]} 21. Qc3 {[%clk 0:01:46.2]} 21... Rxd1+ {[%clk 0:02:08]} 22. Rxd1
{[%clk 0:01:45.6]} 22... Rd8 {[%clk 0:02:08.5]} 23. Rxd8+ {[%clk 0:01:33.8]}
23... Qxd8 {[%clk 0:02:05.9]} 24. h4 {[%clk 0:01:32.9]} 24... h5 {[%clk
0:01:59.8]} 25. Ng5 {[%clk 0:01:21.3]} 25... Qd1+ {[%clk 0:01:53.7]} 26. Kh2
{[%clk 0:01:19.8]} 26... Qb3 {[%clk 0:01:41.4]} 27. Nxe6 {[%clk 0:00:56.3]}
27... Qxc3 {[%clk 0:01:24.5]} 28. Bxc3 {[%clk 0:00:57.2]} 28... fxe6 {[%clk
0:01:24.5]} 29. Bd4 {[%clk 0:00:57.1]} 29... Bh6 {[%clk 0:01:07.8]} 30. Bf1
{[%clk 0:00:47.5]} 30... Bc1 {[%clk 0:01:02.6]} 31. a4 {[%clk 0:00:45.4]} 31...
Nb4 {[%clk 0:00:48.1]} 32. Bc4 {[%clk 0:00:43.3]} 32... Kf7 {[%clk 0:00:45.8]}
33. f4 {[%clk 0:00:37]} 33... Nc2 {[%clk 0:00:35.7]} 34. Bc3 {[%clk 0:00:23.5]}
34... Nb4 {[%clk 0:00:35]} 35. f5 {[%clk 0:00:19.8]} 35... gxf5 {[%clk
0:00:29.9]} 36. exf5 {[%clk 0:00:19.4]} 36... Be3 {[%clk 0:00:28.9]} 37. Bxe6+
{[%clk 0:00:18.2]} 37... Kf8 {[%clk 0:00:25.6]} 38. Bc8 {[%clk 0:00:11.4]} 38...
Bxc5 {[%clk 0:00:19.2]} 39. Bxb7 {[%clk 0:00:11.5]} 39... Bb6 {[%clk 0:00:15.1]}
40. Kh3 {[%clk 0:00:10.4]} 40... Nd5 {[%clk 0:00:13.5]} 41. Bd2 {[%clk
0:00:06.9]} 41... c5 {[%clk 0:00:14]} 42. Bxd5 {[%clk 0:00:05.4]} 42... Kg7
{[%clk 0:00:12.2]} 43. Bc4 {[%clk 0:00:05.9]} 43... Bc7 {[%clk 0:00:11.2]} 44.
g4 {[%clk 0:00:06.5]} 44... Bxe5 {[%clk 0:00:10.4]} 45. Bxa5 {[%clk 0:00:06.6]}
45... hxg4+ {[%clk 0:00:09.5]} 46. Kxg4 {[%clk 0:00:07.5]} 46... Kf6 {[%clk
0:00:09.2]} 47. Bb6 {[%clk 0:00:07.9]} 47... Bd4 {[%clk 0:00:07.6]} 48. a5
{[%clk 0:00:08.4]} 1-0

[Event "*** SCC Grand Prix: Titled Tuesday Blitz"]
[Site "Chess.com"]
[Date "2020.08.11"]
[Round "6"]
[White "Bastiandash"]
[Black "Juanovic"]
[Result "0-1"]
[WhiteElo "2274"]
[BlackElo "2079"]
[TimeControl "180+1"]
[EndTime "11:07:42 PDT"]
[Termination "Juanovic won by checkmate"]

1. d4 {[%clk 0:03:00.9]} 1... d5 {[%clk 0:02:59.4]} 2. Nf3 {[%clk 0:03:00.2]}
2... Nf6 {[%clk 0:02:56.3]} 3. Bg5 {[%clk 0:02:59.1]} 3... Nbd7 {[%clk
0:02:55.6]} 4. Nbd2 {[%clk 0:02:58.2]} 4... g6 {[%clk 0:02:53.4]} 5. e3 {[%clk
0:02:58]} 5... Bg7 {[%clk 0:02:53.9]} 6. Bd3 {[%clk 0:02:57]} 6... h6 {[%clk
0:02:50.5]} 7. Bh4 {[%clk 0:02:56]} 7... c6 {[%clk 0:02:48.7]} 8. O-O {[%clk
0:02:48.9]} 8... Qb6 {[%clk 0:02:48]} 9. Rb1 {[%clk 0:02:48.3]} 9... a5 {[%clk
0:02:45.3]} 10. Qe2 {[%clk 0:02:47.2]} 10... a4 {[%clk 0:02:44.6]} 11. c4 {[%clk
0:02:46.6]} 11... O-O {[%clk 0:02:43.6]} 12. e4 {[%clk 0:02:45.9]} 12... dxc4
{[%clk 0:02:42.5]} 13. Nxc4 {[%clk 0:02:45.3]} 13... Qc7 {[%clk 0:02:40.2]} 14.
Rfe1 {[%clk 0:02:40.9]} 14... e6 {[%clk 0:02:36]} 15. Bg3 {[%clk 0:02:39.1]}
15... Qd8 {[%clk 0:02:32.4]} 16. Bd6 {[%clk 0:02:30.8]} 16... Re8 {[%clk
0:02:31.9]} 17. Ba3 {[%clk 0:02:30.1]} 17... Bf8 {[%clk 0:02:25.8]} 18. Nd6
{[%clk 0:02:30.3]} 18... Bxd6 {[%clk 0:02:25.5]} 19. Bxd6 {[%clk 0:02:31.2]}
19... Nf8 {[%clk 0:02:18.8]} 20. Bb4 {[%clk 0:02:23.5]} 20... b6 {[%clk
0:01:50.9]} 21. Rbd1 {[%clk 0:02:21.2]} 21... N6d7 {[%clk 0:01:48.8]} 22. Bc3
{[%clk 0:02:17]} 22... Qe7 {[%clk 0:01:46]} 23. Qd2 {[%clk 0:02:00.2]} 23... Kh7
{[%clk 0:01:28.7]} 24. d5 {[%clk 0:01:44.1]} 24... Bb7 {[%clk 0:01:13.8]} 25.
Qf4 {[%clk 0:01:23.8]} 25... e5 {[%clk 0:01:06.1]} 26. Qg3 {[%clk 0:00:54.6]}
26... f6 {[%clk 0:01:03.1]} 27. Nh4 {[%clk 0:00:50.4]} 27... Nc5 {[%clk
0:00:57.4]} 28. Bb1 {[%clk 0:00:49.4]} 28... Rad8 {[%clk 0:00:39]} 29. f4 {[%clk
0:00:45.4]} 29... cxd5 {[%clk 0:00:34.8]} 30. exd5 {[%clk 0:00:45.3]} 30... e4
{[%clk 0:00:27.6]} 31. Bb4 {[%clk 0:00:26.3]} 31... f5 {[%clk 0:00:26.9]} 32.
Bc3 {[%clk 0:00:24.6]} 32... Rxd5 {[%clk 0:00:25.3]} 33. Rc1 {[%clk 0:00:23.1]}
33... Nd3 {[%clk 0:00:18.3]} 34. Bxd3 {[%clk 0:00:19.7]} 34... Rxd3 {[%clk
0:00:19.2]} 35. Qf2 {[%clk 0:00:14.7]} 35... e3 {[%clk 0:00:17.8]} 36. Qe2
{[%clk 0:00:14.1]} 36... Rxc3 {[%clk 0:00:16.9]} 37. Rxc3 {[%clk 0:00:12.7]}
37... Qxh4 {[%clk 0:00:17.1]} 38. Rd1 {[%clk 0:00:07.1]} 38... Re7 {[%clk
0:00:17.2]} 39. Rcd3 {[%clk 0:00:03.6]} 39... Qxf4 {[%clk 0:00:17]} 40. Rd8
{[%clk 0:00:03.4]} 40... Ne6 {[%clk 0:00:16.9]} 41. R8d7 {[%clk 0:00:02.5]}
41... Qg5 {[%clk 0:00:14.8]} 42. R7d3 {[%clk 0:00:01.6]} 42... Nc5 {[%clk
0:00:14.4]} 43. Qxe3 {[%clk 0:00:01.7]} 43... Qxe3+ {[%clk 0:00:14.3]} 44. Rxe3
{[%clk 0:00:02.3]} 44... Rxe3 {[%clk 0:00:14.3]} 45. Kf2 {[%clk 0:00:03.2]}
45... Re7 {[%clk 0:00:14.1]} 46. Rd2 {[%clk 0:00:03.4]} 46... Ne4+ {[%clk
0:00:14.5]} 47. Ke1 {[%clk 0:00:04.3]} 47... Nxd2+ {[%clk 0:00:15.1]} 48. Kd1
{[%clk 0:00:05.2]} 48... Ne4 {[%clk 0:00:15.1]} 49. b4 {[%clk 0:00:05.9]} 49...
axb3 {[%clk 0:00:15]} 50. axb3 {[%clk 0:00:06.8]} 50... Rd7+ {[%clk 0:00:15.1]}
51. Kc2 {[%clk 0:00:06.8]} 51... Rd2+ {[%clk 0:00:16]} 52. Kc1 {[%clk
0:00:04.9]} 52... Rxg2 {[%clk 0:00:16.9]} 53. h4 {[%clk 0:00:05.1]} 53... f4
{[%clk 0:00:17.3]} 54. h5 {[%clk 0:00:06]} 54... f3 {[%clk 0:00:17.8]} 55. b4
{[%clk 0:00:06.9]} 55... f2 {[%clk 0:00:17.8]} 56. b5 {[%clk 0:00:07.8]} 56...
f1=Q# {[%clk 0:00:18.4]} 0-1

[Event "*** SCC Grand Prix: Titled Tuesday Blitz"]
[Site "Chess.com"]
[Date "2020.08.11"]
[Round "6"]
[White "Shivagami"]
[Black "Fischerev7"]
[Result "1-0"]
[WhiteElo "2244"]
[BlackElo "2399"]
[TimeControl "180+1"]
[EndTime "11:07:43 PDT"]
[Termination "Shivagami won on time"]

1. d4 {[%clk 0:03:00.9]} 1... Nf6 {[%clk 0:02:59.2]} 2. c4 {[%clk 0:03:00.8]}
2... e6 {[%clk 0:02:59]} 3. Nc3 {[%clk 0:03:01]} 3... Bb4 {[%clk 0:02:59.5]} 4.
f3 {[%clk 0:02:59.5]} 4... d5 {[%clk 0:02:54]} 5. cxd5 {[%clk 0:02:55.1]} 5...
exd5 {[%clk 0:02:53.2]} 6. e3 {[%clk 0:02:52.5]} 6... O-O {[%clk 0:02:52.6]} 7.
Bd3 {[%clk 0:02:52.1]} 7... Re8 {[%clk 0:02:52.8]} 8. Ne2 {[%clk 0:02:52.4]}
8... c5 {[%clk 0:02:52.2]} 9. a3 {[%clk 0:02:52.2]} 9... Bxc3+ {[%clk
0:02:46.6]} 10. bxc3 {[%clk 0:02:53.1]} 10... cxd4 {[%clk 0:02:46]} 11. cxd4
{[%clk 0:02:51.5]} 11... Nc6 {[%clk 0:02:46]} 12. O-O {[%clk 0:02:50.8]} 12...
Be6 {[%clk 0:02:42.3]} 13. Bb2 {[%clk 0:02:47.1]} 13... h6 {[%clk 0:02:41.4]}
14. e4 {[%clk 0:02:46.9]} 14... dxe4 {[%clk 0:02:19.5]} 15. fxe4 {[%clk
0:02:45.7]} 15... Bg4 {[%clk 0:02:18.6]} 16. d5 {[%clk 0:01:58.7]} 16... Qb6+
{[%clk 0:02:11.6]} 17. Kh1 {[%clk 0:01:51.8]} 17... Qxb2 {[%clk 0:02:11.4]} 18.
dxc6 {[%clk 0:01:45.3]} 18... bxc6 {[%clk 0:01:58.3]} 19. Rb1 {[%clk 0:01:14.2]}
19... Qxa3 {[%clk 0:01:55.6]} 20. Qc2 {[%clk 0:01:13.8]} 20... Rad8 {[%clk
0:01:44.5]} 21. Rb3 {[%clk 0:00:56.9]} 21... Qd6 {[%clk 0:01:29.1]} 22. Nf4
{[%clk 0:00:49.2]} 22... Qe5 {[%clk 0:01:16.7]} 23. Qxc6 {[%clk 0:00:19.2]}
23... Nxe4 {[%clk 0:01:05.7]} 24. Rb2 {[%clk 0:00:16.6]} 24... g5 {[%clk
0:00:51.5]} 25. Rb5 {[%clk 0:00:14.4]} 25... Qd6 {[%clk 0:00:42.8]} 26. Bxe4
{[%clk 0:00:14.1]} 26... Rxe4 {[%clk 0:00:41.4]} 27. Qxe4 {[%clk 0:00:13.7]}
27... gxf4 {[%clk 0:00:40.9]} 28. h3 {[%clk 0:00:13.1]} 28... Be6 {[%clk
0:00:33.6]} 29. Qxf4 {[%clk 0:00:11.3]} 29... Qxf4 {[%clk 0:00:28.2]} 30. Rxf4
{[%clk 0:00:12.2]} 30... Rd2 {[%clk 0:00:22.4]} 31. Kh2 {[%clk 0:00:12.3]} 31...
Kf8 {[%clk 0:00:19.8]} 32. Ra5 {[%clk 0:00:12.1]} 32... h5 {[%clk 0:00:16.2]}
33. Rf3 {[%clk 0:00:12.2]} 33... Bd5 {[%clk 0:00:14.8]} 34. Rg3 {[%clk
0:00:12.5]} 34... h4 {[%clk 0:00:14.8]} 35. Rg4 {[%clk 0:00:11.9]} 35... f5
{[%clk 0:00:13.1]} 36. Rg5 {[%clk 0:00:11.7]} 36... Be4 {[%clk 0:00:08.8]} 37.
Rxa7 {[%clk 0:00:10.6]} 37... Rc2 {[%clk 0:00:05.3]} 38. Rh7 {[%clk 0:00:11]}
38... Rf2 {[%clk 0:00:02.6]} 39. Rxh4 {[%clk 0:00:11.3]} 39... Kf7 {[%clk
0:00:02.7]} 40. Rh7+ {[%clk 0:00:11.1]} 40... Kf6 {[%clk 0:00:02.8]} 41. h4
{[%clk 0:00:11.7]} 41... Ke5 {[%clk 0:00:02.8]} 42. Kh3 {[%clk 0:00:11.7]} 42...
Kf4 {[%clk 0:00:03.2]} 43. g3+ {[%clk 0:00:10.8]} 43... Kf3 {[%clk 0:00:03.4]}
44. Rf7 {[%clk 0:00:10.3]} 44... Ke3 {[%clk 0:00:01.8]} 45. h5 {[%clk
0:00:09.9]} 1-0

[Event "*** SCC Grand Prix: Titled Tuesday Blitz"]
[Site "Chess.com"]
[Date "2020.08.11"]
[Round "6"]
[White "Alomaterapia"]
[Black "TokChess"]
[Result "0-1"]
[WhiteElo "2503"]
[BlackElo "2404"]
[TimeControl "180+1"]
[EndTime "11:07:44 PDT"]
[Termination "TokChess won by resignation"]

1. e4 {[%clk 0:03:00.9]} 1... c5 {[%clk 0:02:59.4]} 2. Nf3 {[%clk 0:03:00.8]}
2... d6 {[%clk 0:02:58.6]} 3. Bb5+ {[%clk 0:03:00.5]} 3... Bd7 {[%clk
0:02:58.1]} 4. Bxd7+ {[%clk 0:03:00]} 4... Qxd7 {[%clk 0:02:58.6]} 5. O-O {[%clk
0:03:00.3]} 5... Nf6 {[%clk 0:02:51.1]} 6. Re1 {[%clk 0:02:59.7]} 6... e5 {[%clk
0:02:50.3]} 7. c3 {[%clk 0:02:57.1]} 7... Be7 {[%clk 0:02:50.6]} 8. d4 {[%clk
0:02:57.4]} 8... Nc6 {[%clk 0:02:48.9]} 9. dxc5 {[%clk 0:02:44.3]} 9... dxc5
{[%clk 0:02:47.4]} 10. Qxd7+ {[%clk 0:02:43.9]} 10... Nxd7 {[%clk 0:02:48]} 11.
Na3 {[%clk 0:02:44.1]} 11... Nb6 {[%clk 0:02:43.1]} 12. Bg5 {[%clk 0:02:35.9]}
12... f6 {[%clk 0:02:33.7]} 13. Be3 {[%clk 0:02:35.4]} 13... O-O-O {[%clk
0:02:32.7]} 14. Kf1 {[%clk 0:02:31.2]} 14... a6 {[%clk 0:02:27.6]} 15. Ke2
{[%clk 0:02:30.3]} 15... Kc7 {[%clk 0:02:28.1]} 16. Red1 {[%clk 0:02:27.9]}
16... Na4 {[%clk 0:02:22.8]} 17. Rxd8 {[%clk 0:02:25.2]} 17... Rxd8 {[%clk
0:02:22.2]} 18. Rb1 {[%clk 0:02:24.4]} 18... b5 {[%clk 0:02:20.9]} 19. Nc2
{[%clk 0:02:24.7]} 19... c4 {[%clk 0:02:19.9]} 20. Nfe1 {[%clk 0:02:19]} 20...
Nc5 {[%clk 0:02:18.7]} 21. Bxc5 {[%clk 0:02:15.7]} 21... Bxc5 {[%clk 0:02:18.2]}
22. b3 {[%clk 0:02:10.5]} 22... cxb3 {[%clk 0:02:16.4]} 23. axb3 {[%clk
0:02:10.8]} 23... Bb6 {[%clk 0:02:14.8]} 24. Nd3 {[%clk 0:02:10.4]} 24... Rd6
{[%clk 0:02:14.1]} 25. Ncb4 {[%clk 0:02:08.4]} 25... Nxb4 {[%clk 0:02:11.6]} 26.
Nxb4 {[%clk 0:02:08.7]} 26... Kb7 {[%clk 0:02:12.1]} 27. Nd5 {[%clk 0:02:08.8]}
27... Bd8 {[%clk 0:02:10.8]} 28. c4 {[%clk 0:02:06]} 28... Rc6 {[%clk
0:02:08.6]} 29. Kd3 {[%clk 0:02:05.9]} 29... Rc5 {[%clk 0:02:04]} 30. h4 {[%clk
0:01:56.1]} 30... a5 {[%clk 0:01:52.9]} 31. Nc3 {[%clk 0:01:54.3]} 31... b4
{[%clk 0:01:35.6]} 32. Nd5 {[%clk 0:01:50.1]} 32... Bb6 {[%clk 0:01:35]} 33. Rh1
{[%clk 0:01:40.7]} 33... Rc8 {[%clk 0:01:31.8]} 34. f3 {[%clk 0:01:37.4]} 34...
Bd4 {[%clk 0:01:30.9]} 35. Rc1 {[%clk 0:01:25.5]} 35... Ra8 {[%clk 0:01:25.4]}
36. Rb1 {[%clk 0:01:15.5]} 36... Kc6 {[%clk 0:01:23.7]} 37. h5 {[%clk
0:01:14.9]} 37... h6 {[%clk 0:01:10.4]} 38. Ne7+ {[%clk 0:01:12.3]} 38... Kc5
{[%clk 0:01:08.7]} 39. Nf5 {[%clk 0:01:12.1]} 39... Ra7 {[%clk 0:01:08.4]} 40.
Nxd4 {[%clk 0:01:02.8]} 40... exd4 {[%clk 0:01:08.1]} 41. Ra1 {[%clk 0:01:01.5]}
41... Ra6 {[%clk 0:00:43.3]} 42. f4 {[%clk 0:01:00.8]} 42... Ra7 {[%clk
0:00:43.2]} 43. e5 {[%clk 0:00:51.2]} 43... fxe5 {[%clk 0:00:42.7]} 44. fxe5
{[%clk 0:00:51.5]} 44... Ra6 {[%clk 0:00:41.9]} 45. Ke4 {[%clk 0:00:43]} 45...
a4 {[%clk 0:00:35.5]} 46. bxa4 {[%clk 0:00:35]} 46... b3 {[%clk 0:00:35.8]} 47.
a5 {[%clk 0:00:29.6]} 47... Kxc4 {[%clk 0:00:32.2]} 48. Ra4+ {[%clk 0:00:29.5]}
48... Kc3 {[%clk 0:00:27.1]} 49. Rxd4 {[%clk 0:00:24.5]} 49... b2 {[%clk
0:00:25.3]} 50. Rd3+ {[%clk 0:00:24.7]} 50... Kc2 {[%clk 0:00:24.9]} 51. Rd6
{[%clk 0:00:22.9]} 51... Rxd6 {[%clk 0:00:19.4]} 52. exd6 {[%clk 0:00:23]} 52...
b1=Q {[%clk 0:00:19.9]} 53. d7 {[%clk 0:00:23.3]} 53... Qb8 {[%clk 0:00:16.9]}
54. Kf5 {[%clk 0:00:21.8]} 54... Qd8 {[%clk 0:00:15.4]} 55. Ke6 {[%clk
0:00:22.1]} 55... Qxa5 {[%clk 0:00:14.1]} 56. Ke7 {[%clk 0:00:21.9]} 56... Qe5+
{[%clk 0:00:13.5]} 57. Kf7 {[%clk 0:00:22.2]} 57... Qxh5+ {[%clk 0:00:11.6]} 58.
Kxg7 {[%clk 0:00:22.4]} 58... Qg5+ {[%clk 0:00:09.7]} 0-1

[Event "*** SCC Grand Prix: Titled Tuesday Blitz"]
[Site "Chess.com"]
[Date "2020.08.11"]
[Round "6"]
[White "Mikasinski"]
[Black "Isajevsky_Anton"]
[Result "0-1"]
[WhiteElo "2450"]
[BlackElo "2602"]
[TimeControl "180+1"]
[EndTime "11:07:45 PDT"]
[Termination "Isajevsky_Anton won by resignation"]

1. e4 {[%clk 0:03:00.9]} 1... c5 {[%clk 0:02:59.5]} 2. Nf3 {[%clk 0:03:01]} 2...
d6 {[%clk 0:02:59.8]} 3. d4 {[%clk 0:03:01.5]} 3... cxd4 {[%clk 0:03:00.6]} 4.
Nxd4 {[%clk 0:03:02.1]} 4... Nf6 {[%clk 0:03:01.2]} 5. Nc3 {[%clk 0:03:02.5]}
5... a6 {[%clk 0:03:01.9]} 6. Be2 {[%clk 0:03:02.5]} 6... e5 {[%clk 0:03:01.3]}
7. Nf3 {[%clk 0:03:02.8]} 7... Qc7 {[%clk 0:02:53.9]} 8. Bg5 {[%clk 0:03:01.7]}
8... Nbd7 {[%clk 0:02:53.4]} 9. O-O {[%clk 0:02:58.2]} 9... b5 {[%clk
0:02:48.4]} 10. a4 {[%clk 0:02:27.2]} 10... b4 {[%clk 0:02:48]} 11. Nd5 {[%clk
0:02:27]} 11... Nxd5 {[%clk 0:02:47.5]} 12. Qxd5 {[%clk 0:02:27]} 12... Bb7
{[%clk 0:02:46]} 13. Qd2 {[%clk 0:02:10.9]} 13... Bxe4 {[%clk 0:02:26]} 14. Qxb4
{[%clk 0:02:09.9]} 14... d5 {[%clk 0:02:25.7]} 15. Qb3 {[%clk 0:01:58.1]} 15...
Rb8 {[%clk 0:01:24.6]} 16. Qe3 {[%clk 0:01:25.1]} 16... f6 {[%clk 0:01:01.1]}
17. Bh4 {[%clk 0:01:13.2]} 17... Nc5 {[%clk 0:01:00.7]} 18. b3 {[%clk 0:00:31]}
18... Bd6 {[%clk 0:00:52.8]} 19. Rac1 {[%clk 0:00:23.1]} 19... O-O {[%clk
0:00:50.1]} 20. Nd2 {[%clk 0:00:21.9]} 20... Bg6 {[%clk 0:00:48]} 21. Bg3 {[%clk
0:00:15.9]} 21... f5 {[%clk 0:00:16.4]} 22. f4 {[%clk 0:00:15.7]} 22... d4
{[%clk 0:00:16.7]} 23. Qf2 {[%clk 0:00:14.1]} 23... Ne4 {[%clk 0:00:17]} 24.
Nxe4 {[%clk 0:00:13.8]} 24... fxe4 {[%clk 0:00:17.9]} 25. Bc4+ {[%clk
0:00:12.5]} 25... Kh8 {[%clk 0:00:17.6]} 26. Qd2 {[%clk 0:00:07.4]} 26... e3
{[%clk 0:00:17.6]} 27. Qd1 {[%clk 0:00:07.5]} 27... exf4 {[%clk 0:00:18]} 28.
Be1 {[%clk 0:00:05.5]} 28... Qb6 {[%clk 0:00:16.2]} 29. Kh1 {[%clk 0:00:04.8]}
29... Be5 {[%clk 0:00:15.2]} 30. Qe2 {[%clk 0:00:04.7]} 30... a5 {[%clk
0:00:13.8]} 31. Bd5 {[%clk 0:00:03.5]} 31... Rfd8 {[%clk 0:00:13]} 32. Bc4
{[%clk 0:00:03.9]} 32... Be4 {[%clk 0:00:12.7]} 33. Bd3 {[%clk 0:00:04]} 33...
Ba8 {[%clk 0:00:11.9]} 34. Qh5 {[%clk 0:00:04.3]} 34... h6 {[%clk 0:00:05.8]}
35. Qxe5 {[%clk 0:00:04.2]} 35... Qc6 {[%clk 0:00:04.3]} 36. Rg1 {[%clk
0:00:04.3]} 36... f3 {[%clk 0:00:04.4]} 37. Qg3 {[%clk 0:00:02.8]} 37... Rf8
{[%clk 0:00:03]} 38. gxf3 {[%clk 0:00:02.7]} 38... Rxf3 {[%clk 0:00:03]} 39. Qg2
{[%clk 0:00:02.5]} 39... Qf6 {[%clk 0:00:02.4]} 40. Be2 {[%clk 0:00:02.4]} 40...
Rf4 {[%clk 0:00:02.5]} 41. Bg3 {[%clk 0:00:01.7]} 41... Bxg2+ {[%clk 0:00:02.4]}
42. Kxg2 {[%clk 0:00:02.3]} 42... Rf2+ {[%clk 0:00:03.3]} 43. Bxf2 {[%clk
0:00:02.2]} 43... Qxf2+ {[%clk 0:00:04.2]} 44. Kh1 {[%clk 0:00:02.7]} 44... Qxe2
{[%clk 0:00:05]} 45. Rg2 {[%clk 0:00:03.3]} 45... Qf3 {[%clk 0:00:05.3]} 46. Rg1
{[%clk 0:00:03.6]} 46... Rf8 {[%clk 0:00:05.6]} 47. h3 {[%clk 0:00:03.4]} 47...
Qxh3+ {[%clk 0:00:05.1]} 48. Rh2 {[%clk 0:00:04.3]} 48... Qf3+ {[%clk
0:00:05.7]} 49. Rgg2 {[%clk 0:00:04.6]} 0-1